Cogmind - Beta 14 @@@ ROGUE MODE // 2024.08.22 @ 22:26:10 Player: cabin Result: Destroyed by H-61 Shepherd with Heavy Assault Cannon Performance ------------- Evolutions (2) 1000 Regions Visited (7) 1400 Robots Destroyed (13) 65 Value Destroyed (355) 355 Prototype IDs (1) 20 Alien Tech Used (0) 0 Bonus (60) 60 TOTAL SCORE: 2900 Bonus ------- Follower Combat Kills 60 Cogmind --------- Core Integrity 0/550 Matter 300/300 Energy 99/100 System Corruption 0% Temperature Cool (0) Movement Core (100) Ox1 Location -8/Materials Parts ------- > --- POWER (3) -------- (None) > --- PROPULSION (2) --- (None) > --- UTILITY (2) ------ Salvage Targeting Computer Hardlight Generator > --- WEAPON (4) ------- (None) > --- INVENTORY (5) ---- Compact Wheel Improved Terrain Scanner Peak State ------------ > --- POWER ------------ Ion Engine > --- PROPULSION ------- Aluminum Leg Aluminum Leg > --- UTILITY ---------- Compact Matter Pod Experimental Sensor Array > --- WEAPON ----------- Light Assault Rifle Light Assault Rifle > --- INVENTORY -------- Improved Terrain Scanner [Rating: 17] Favorites ----------- Power Ion Engine Engine Ion Engine Power Core Light Nuclear Core Propulsion Aluminum Leg Treads Light Treads Leg Aluminum Leg Wheel Wheel Flight Unit Flight Unit Utility Compact Matter Pod Device Improved Heat Sink Storage Compact Matter Pod Processor Salvage Targeting Computer Protection Utility Shielding Weapon Light Assault Rifle Energy Gun Pulse Rifle Energy Cannon Light EM Pulse Cannon Ballistic Gun Light Assault Rifle Build | -11 -10 -10 -9 -9 -9 -8 -8 ------- Run | Yrd Mat Min Mat Min Exi Min Mat Slots Evolved 4 | . . . 2 . . . 2 Power 2 | . . . 1 . . . 1 Propulsion . | . . . . . . . . Utility . | . . . . . . . . Weapon 2 | . . . 1 . . . 1 Parts Attached 40 | 5 . 8 1 12 1 1 12 Power 11 | 1 . 1 . 5 1 . 3 Engine 8 | 1 . . . 4 . . 3 Core 3 | . . 1 . 1 1 . . Reactor . | . . . . . . . . Propulsion 11 | 2 . 1 1 4 . 1 2 Treads 1 | . . . . . . . 1 Leg 5 | 2 . 1 1 . . . 1 Wheel 4 | . . . . 3 . 1 . Hover . | . . . . . . . . Flight 1 | . . . . 1 . . . Utility 12 | . . 5 . 2 . . 5 Device 6 | . . 3 . . . . 3 Storage 2 | . . 2 . . . . . Processor 1 | . . . . 1 . . . Hackware . | . . . . . . . . Protection 3 | . . . . 1 . . 2 Artifact . | . . . . . . . . Weapon 6 | 2 . 1 . 1 . . 2 Energy Gun 2 | . . . . . . . 2 Energy Cannon 1 | . . . . 1 . . . Ballistic Gun 3 | 2 . 1 . . . . . Ballistic Cannon . | . . . . . . . . Launcher . | . . . . . . . . Special Weapon . | . . . . . . . . Impact Weapon . | . . . . . . . . Slashing Weapon . | . . . . . . . . Piercing Weapon . | . . . . . . . . Special Melee Weapon . | . . . . . . . . Unidentified Prototypes 1 | . . 1 . . . . . Parts Lost 22 | . . . 1 8 . 2 11 Power 5 | . . . . 1 . 1 3 Propulsion 7 | . . . . 3 . 1 3 Utility 5 | . . . . 2 . . 3 Weapon 5 | . . . 1 2 . . 2 Highest Loss Streak 11 | . . . 1 6 . 2 11 To Critical Strikes . | . . . . . . . . Average Slot Usage (%) 73 | . 71 94 59 54 56 53 48 Engine 7 | . 14 8 . 10 1 . 12 Core 3 | . . 2 . 1 11 10 . Leg 17 | . 28 28 21 5 . . 5 Wheel 5 | . . . . 10 22 21 8 Device 5 | . . 9 11 2 . . 1 Storage 8 | . . 16 11 2 . . . Processor 3 | . . . . 8 11 11 9 Protection 3 | . . . . 8 11 11 6 Ballistic Gun 15 | . 28 27 16 2 . . . Peak Build Rating 17 | 5 5 17 13 13 9 8 10 Average Rating 9 | 3 5 11 11 7 8 7 7 On Entrance 6 | . 5 5 13 10 9 8 4 Naked Turns . | . . . . . . . . Heaviest Build 12 | 7 7 10 4 12 9 6 12 Greatest Support 26 | 20 20 25 25 26 20 20 20 Greatest Overweight (x) 3 | . . . . 1 . . 3 Average Overweight (x) . | . . . . . . . . Largest Inventory Capacity 5 | 5 5 5 5 5 5 5 5 Average Capacity 5 | 5 5 5 5 5 5 5 5 Most Carried 5 | . . 5 5 5 5 5 4 Average Carried 2 | . . 1 5 4 4 5 2 Final Capacity 5 | 5 5 5 5 5 5 5 5 Final Carried 5 | . . 5 5 4 5 5 2 Class Distribution -------------------- 90% | Mutant 9% | Scavenger-Mutant Dominant Class ---------------- Mutant | -10/Materials Mutant | -10/Mines Mutant | -9/Materials Mutant | -9/Mines Mutant | -9/Exiles Mutant | -8/Mines Mutant | -8/Materials Resources | -11 -10 -10 -9 -9 -9 -8 -8 ----------- Run | Yrd Mat Min Mat Min Exi Min Mat Matter Collected 667 | 157 . 264 27 110 . . 109 Remotely . | . . . . . . . . Salvage Created 462 | . . 186 74 49 . . 153 Parts 35 | . . 21 4 1 . . 9 Haulers Intercepted . | . . . . . . . . Recyclers Shooed . | . . . . . . . . Parts Field Recycled . | . . . . . . . . Retrieved Matter . | . . . . . . . . Parts Self-Destructed . | . . . . . . . . Prevented . | . . . . . . . . Kills | -11 -10 -10 -9 -9 -9 -8 -8 ------- Run | Yrd Mat Min Mat Min Exi Min Mat Combat Hostiles Destroyed 13 | . . 5 2 3 . . 3 Melee 1 | . . . . 1 . . . Guns 11 | . . 5 2 1 . . 3 Cannons 1 | . . . . 1 . . . Classes Destroyed 6 | . . 3 1 1 . . 1 Tunneler 2 | . . 2 . . . . . Swarmer 4 | . . 3 . 1 . . . Grunt 5 | . . 2 1 . . . 2 Duelist 1 | . . . 1 . . . . Sentry 1 | . . . . . . . 1 Assembled 2 | . . . . 2 . . . Best Kill Streak 3 | . . 3 2 2 . . 3 Combat Bots Only 3 | . . 3 2 2 . . 3 Max Kills in Single Turn 1 | . . 1 1 1 . . 1 Gunslinging . | . . . . . . . . Exploded . | . . . . . . . . Melee 1 | . . . . 1 . . . Uniques/NPCs Destroyed . | . . . . . . . . Combat | -11 -10 -10 -9 -9 -9 -8 -8 -------- Run | Yrd Mat Min Mat Min Exi Min Mat Hostile Shots Fired 167 | . 4 20 25 45 . 19 54 Missed 52 | . 2 8 1 20 . 10 11 Damage Taken 2250 | . 26 151 370 442 . 139 1122 Core 950 | . . 23 127 181 . 35 584 Absorbed by Shields 36 | . . . . . . . 36 Core Remaining (%) 68 | 100 . 90 . . . 14 . Volleys Fired 71 | . . 23 16 18 . . 14 Largest 2 | . . 2 2 2 . . 2 Hottest 128 | . . 40 40 76 . . 128 Shots Fired 106 | . . 46 22 21 . . 17 Gun 103 | . . 46 22 18 . . 17 Cannon 3 | . . . . 3 . . . Launcher . | . . . . . . . . Special . | . . . . . . . . Kinetic 86 | . . 46 22 18 . . . Thermal 17 | . . . . . . . 17 Explosive . | . . . . . . . . Electromagnetic 3 | . . . . 3 . . . Robot Hit Streak 8 | . . 3 5 7 . . 8 Robot Miss Streak 4 | . . 4 3 2 . . 1 Penetration Max . | . . . . . . . . Secondary Targets 2 | . . 1 . . . . 1 Max Gunslinging Chain 1 | . . 1 . . . . 1 Shots Hit Robots 60 | . . 22 14 10 . . 14 Core Hits 38 | . . 13 7 8 . . 10 Critical Kills 1 | . . 1 . . . . . Critical Parts Destroyed . | . . . . . . . . Critical Strikes 2 | . . 1 . . . . 1 Burn 1 | . . . . . . . 1 Destroy 1 | . . 1 . . . . . Melee Attacks . | . . . . . . . . Impact . | . . . . . . . . Slashing . | . . . . . . . . Piercing . | . . . . . . . . Sneak Attacks . | . . . . . . . . Combat Hostiles . | . . . . . . . . Follow-up Attacks . | . . . . . . . . Damage Inflicted 687 | 5 . 193 113 128 . . 248 Guns 605 | . . 171 113 81 . . 240 Cannons 37 | . . . . 37 . . . Explosions . | . . . . . . . . Melee . | . . . . . . . . Ramming 45 | 5 . 22 . 10 . . 8 Kinetic 365 | . . 171 113 81 . . . Thermal 240 | . . . . . . . 240 Explosive . | . . . . . . . . Electromagnetic 37 | . . . . 37 . . . Impact . | . . . . . . . . Slashing . | . . . . . . . . Piercing . | . . . . . . . . Highest Corruption 21 | . . . . 20 20 21 . Average Corruption 19 | . . . . 19 20 20 . Corruption Purged . | . . . . . . . . Corruption Blocked . | . . . . . . . . Effects 32 | . . . . 17 9 6 . Message Errors 11 | . . . . 8 2 1 . Matter Fused 7 | . . . . 1 3 3 . Heat Flow Errors 1 | . . . . 1 . . . Energy Discharges 2 | . . . . 2 . . . Parts Rejected 1 | . . . . . . 1 . Data Loss (minor) 5 | . . . . 3 2 . . Data Loss (major) 1 | . . . . 1 . . . Alerts 2 | . . . . . 2 . . Misdirections 2 | . . . . 1 . 1 . Overload Shots . | . . . . . . . . Overflow Damage . | . . . . . . . . Projectiles . | . . . . . . . . Explosions . | . . . . . . . . Melee . | . . . . . . . . Knockbacks . | . . . . . . . . Impact . | . . . . . . . . Kinetic . | . . . . . . . . Secondary . | . . . . . . . . Self-Inflicted Damage 5 | . . . . 2 . . 3 Shots . | . . . . . . . . Rammed 11 | . . . . 4 . 2 5 Targets Rammed 24 | 3 . 9 . 5 . 2 5 Kicked 13 | 3 . 9 . 1 . . . Crushed . | . . . . . . . . Highest Temperature 187 | . . 26 . 171 . . 187 Average Temperature 69 | . . 7 . 93 . . 89 Received Heat Transfer 496 | . 18 57 114 . . 81 226 Siege Activations . | . . . . . . . . Robots Corrupted . | . . . . . . . . Combat Hostiles . | . . . . . . . . Parts Fried . | . . . . . . . . Impact Corruptions . | . . . . . . . . Robots Melted . | . . . . . . . . Combat Hostiles . | . . . . . . . . Parts Melted 1 | . . . . . . . 1 Heat Transferred 592 | . . . . . . . 592 Parts Sabotaged . | . . . . . . . . Parts Stolen . | . . . . . . . . Parts Stripped . | . . . . . . . . Power Chain Reactions . | . . . . . . . . Alert | -11 -10 -10 -9 -9 -9 -8 -8 ------- Run | Yrd Mat Min Mat Min Exi Min Mat Peak Influence 118 | . 15 85 102 89 . 30 118 Initial 39 | . . 5 17 39 . . 3 Average 32 | . 9 31 58 33 . 12 42 Maximum Alert Level . | . . . . . . . . Low Security (%) 100 | 100 100 100 100 100 . 100 100 Level 1 . | . . . . . . . . Level 2 . | . . . . . . . . Level 3 . | . . . . . . . . Level 4 . | . . . . . . . . Level 5 . | . . . . . . . . High Security . | . . . . . . . . Max Security . | . . . . . . . . Squads Dispatched 2 | . . . 1 . . . 1 Investigation . | . . . . . . . . Extermination . | . . . . . . . . Reinforcement 2 | . . . 1 . . . 1 Assault . | . . . . . . . . Garrison . | . . . . . . . . Intercept . | . . . . . . . . Searches Triggered . | . . . . . . . . Construction Impeded . | . . . . . . . . Haulers Reinforced . | . . . . . . . . Active Scanning Responses . | . . . . . . . . Cargo Convoy Interrupts . | . . . . . . . . Stealth | -11 -10 -10 -9 -9 -9 -8 -8 --------- Run | Yrd Mat Min Mat Min Exi Min Mat Distress Signals 1 | . 1 . . . . . . Communications Jammed . | . . . . . . . . Distress Signals . | . . . . . . . . Times Spotted 45 | . 3 7 9 11 . 8 7 Peak Tracking Total 6 | . 3 3 5 3 . 6 5 Tactical Retreats 6 | . . . . 4 . 1 1 Traps | -11 -10 -10 -9 -9 -9 -8 -8 ------- Run | Yrd Mat Min Mat Min Exi Min Mat Traps Triggered . | . . . . . . . . Indirectly . | . . . . . . . . Trap Hack Attempts . | . . . . . . . . Triggered . | . . . . . . . . Disarmed . | . . . . . . . . Reprogrammed . | . . . . . . . . Reused . | . . . . . . . . Traps Extracted . | . . . . . . . . Installed . | . . . . . . . . Triggered . | . . . . . . . . Machines | -11 -10 -10 -9 -9 -9 -8 -8 ---------- Run | Yrd Mat Min Mat Min Exi Min Mat Machines Disabled . | . . . . . . . . Max in Single Turn . | . . . . . . . . Machines Repaired . | . . . . . . . . Machines Dismantled . | . . . . . . . . Machines Sabotaged . | . . . . . . . . Overloaded Fab Kills . | . . . . . . . . Hacking | -11 -10 -10 -9 -9 -9 -8 -8 --------- Run | Yrd Mat Min Mat Min Exi Min Mat Machines Accessed 1 | . . . . . . . 1 Terminals 1 | . . . . . . . 1 Fabricators . | . . . . . . . . Repair Stations . | . . . . . . . . Recycling Units . | . . . . . . . . Scanalyzers . | . . . . . . . . Garrison Access . | . . . . . . . . Total Hacks 1 | . . . . . . . 1 Successful 1 | . . . . . . . 1 Failed . | . . . . . . . . Catastrophic . | . . . . . . . . Database Lockouts . | . . . . . . . . Manual . | . . . . . . . . Terminals 1 | . . . . . . . 1 Fabricators . | . . . . . . . . Repair Stations . | . . . . . . . . Recycling Units . | . . . . . . . . Scanalyzers . | . . . . . . . . Garrison Access . | . . . . . . . . Terminal Hacks 1 | . . . . . . . 1 Robot Analysis 1 | . . . . . . . 1 Fabricator Hacks . | . . . . . . . . Repair Station Hacks . | . . . . . . . . Recycling Unit Hacks . | . . . . . . . . Scanalyzer . | . . . . . . . . Garrison Access Hacks . | . . . . . . . . Unauthorized Hacks . | . . . . . . . . Terminals . | . . . . . . . . Fabricators . | . . . . . . . . Repair Stations . | . . . . . . . . Recycling Units . | . . . . . . . . Scanalyzers . | . . . . . . . . Garrison Access . | . . . . . . . . Data Cores Recovered . | . . . . . . . . Used . | . . . . . . . . Hacking Detections . | . . . . . . . . Full Trace Events . | . . . . . . . . Feedback Events . | . . . . . . . . Feedback Blocked . | . . . . . . . . Robot Schematics Acquired . | . . . . . . . . Robots Built . | . . . . . . . . Authchips . | . . . . . . . . Time . | . . . . . . . . Total Robot Build Rating . | . . . . . . . . Part Schematics Acquired . | . . . . . . . . Parts Built . | . . . . . . . . Authchips . | . . . . . . . . Time . | . . . . . . . . Total Part Build Rating . | . . . . . . . . Parts Repaired . | . . . . . . . . Time . | . . . . . . . . Parts Recycled . | . . . . . . . . Recycled Matter . | . . . . . . . . Retrieved Matter . | . . . . . . . . Retrieved Components . | . . . . . . . . Parts Scanalyzed . | . . . . . . . . Part Schematics Acquired . | . . . . . . . . Parts Damaged . | . . . . . . . . Bothacking | -11 -10 -10 -9 -9 -9 -8 -8 ------------ Run | Yrd Mat Min Mat Min Exi Min Mat Used RIF Installer . | . . . . . . . . Robots Hacked . | . . . . . . . . Non-combat . | . . . . . . . . Combat . | . . . . . . . . Robot Hacks Applied . | . . . . . . . . Relay Couplers Released . | . . . . . . . . Fabnet Peak Effective % . | . . . . . . . . Robots Rewired . | . . . . . . . . Allies Hacked . | . . . . . . . . Hacks Repelled . | . . . . . . . . Allies | -11 -10 -10 -9 -9 -9 -8 -8 -------- Run | Yrd Mat Min Mat Min Exi Min Mat Total Allies 2 | . . 2 . . . . . Largest Group 2 | . . 2 . . . . . Highest-Rated Group 42 | . . 42 . . . . . Highest-Rated Ally 31 | . . 31 . . . . . Total Orders . | . . . . . . . . Ally Attacks 13 | . . 13 . . . . . Total Damage 127 | . . 127 . . . . . Kills 2 | . . 2 . . . . . Allies Corrupted . | . . . . . . . . Allies Melted . | . . . . . . . . Intel | -11 -10 -10 -9 -9 -9 -8 -8 ------- Run | Yrd Mat Min Mat Min Exi Min Mat Robot Analysis Total 1 | . . . . . . . 1 Derelict Logs Recovered 2 | . . 1 . 1 . . . Drone Launches . | . . . . . . . . Drone Recoveries . | . . . . . . . . Exploration | -11 -10 -10 -9 -9 -9 -8 -8 ------------- Run | Yrd Mat Min Mat Min Exi Min Mat Turns Passed 2408 | 56 86 1100 169 453 222 130 192 Spaces Moved 2106 | 49 72 847 112 498 275 159 94 Core 145 | 19 . . . 88 . . 38 Treads 1 | . . . . . . . 1 Legs 1176 | 30 72 847 112 60 . . 55 Wheels 666 | . . . . 232 275 159 . Hover . | . . . . . . . . Flight 118 | . . . . 118 . . . Fastest Speed 40 | 50 120 120 120 40 80 80 50 Average Speed 101 | 92 120 120 120 78 80 80 125 Slowest Speed 200 | 120 120 120 120 120 80 80 200 Overloaded Moves . | . . . . . . . . Propulsion Burnouts . | . . . . . . . . Robots Hopped . | . . . . . . . . Cave-ins Triggered . | . . . . . . . . Exploration Rate (%) 31 | 4 19 88 14 45 55 20 3 Regions Visited 7 Branch Regions 4 Pre-discovered Areas 1 | . . 1 . . . . . Known Exits Taken . | . . . . . . . . Unknown Exits Taken 7 | 1 1 1 1 1 1 1 . Scrap Searched 1 | . . 1 . . . . . Spaces Dug . | . . . . . . . . Terrain Destroyed . | . . . . . . . . Melee . | . . . . . . . . Projectile . | . . . . . . . . AOE . | . . . . . . . . Terrain Rammed . | . . . . . . . . Walls Destroyed . | . . . . . . . . Machines Disabled . | . . . . . . . . Actions | -11 -10 -10 -9 -9 -9 -8 -8 --------- Run | Yrd Mat Min Mat Min Exi Min Mat Total 2269 | 56 71 891 129 539 277 161 145 Wait 22 | . . . . 2 . . 20 Move 2099 | 48 71 846 111 497 274 158 94 Hop . | . . . . . . . . Pick Up . | . . . . . . . . Fast Attach 31 | 5 . 5 1 10 1 1 8 Attach 4 | . . 1 . . . . 3 Detach 6 | . . 4 . 1 1 . . Swap 5 | . . 2 . 2 . . 1 Drop 7 | . . 1 1 4 1 . . Fire 71 | . . 23 16 18 . . 14 Melee . | . . . . . . . . Ram 9 | . . . . 4 . 2 3 Kick 13 | 3 . 9 . 1 . . . Crush 2 | . . . . . . . 2 Escape Stasis . | . . . . . . . . Rewire . | . . . . . . . . Trap . | . . . . . . . . Miscellaneous . | . . . . . . . . Route ------- -11/Scrapyard -10/Materials (discovered 3 exits: [*Mat] / [*Min x2]) -10/Mines (discovered 2 exits: [*Mat x2]) -9/Materials -9/Mines -9/Exiles (discovered 2 exits: [*Min x2]) -8/Mines -8/Materials History --------- Turn | Location | Event 35 | -11/Scrapyard | Discovered new exit (range 15) 57 | -11/Scrapyard | Entered Materials 109 | -10/Materials | Discovered new exit (range 13) 119 | -10/Materials | Discovered new exit (range 16) 143 | -10/Materials | Discovered new exit (range 15) 143 | -10/Materials | Entered Mines 169 | -10/Mines | Learned location of Mines (-9) 307 | -10/Mines | Build established: Mutant 728 | -10/Mines | Found a damaged Exp. Sensor Array with a note attached 736 | -10/Mines | Found Prototype Device 736 | -10/Mines | Identified Exp. Sensor Array 1104 | -10/Mines | Discovered new exit (range 5) 1130 | -10/Mines | Discovered new exit (range 6) 1243 | -10/Mines | Entered Materials 1243 | -9/Materials | Evolved 2 slots: Power x1, Weapon x1 1394 | -9/Materials | Discovered new exit (range 8) 1412 | -9/Materials | Entered Mines 1456 | -9/Mines | Assembled infested the area 1521 | -9/Mines | System corruption reached 10% 1527 | -9/Mines | Core integrity fell below 50% 1554 | -9/Mines | Lost 6 parts (2n2u2w) 1604 | -9/Mines | Learned Materials security intel 1860 | -9/Mines | Deemed a non-threat by the Exiles lab entrance 1861 | -9/Mines | Discovered new exit (range 5) 1865 | -9/Mines | Entered Exiles 1892 | -9/Exiles | Discovered new exit (range 15) 1943 | -9/Exiles | Met 8R-AWN 1960 | -9/Exiles | Met EX-HEX 1993 | -9/Exiles | Met EX-DEC 2073 | -9/Exiles | Discovered new exit (range 12) 2087 | -9/Exiles | Entered Mines 2176 | -8/Mines | Core integrity fell below 20% 2208 | -8/Mines | Discovered new exit (range 10) 2217 | -8/Mines | Entered Materials 2217 | -8/Materials | Evolved 2 slots: Power x1, Weapon x1 2351 | -8/Materials | Core integrity fell below 50% 2391 | -8/Materials | Core integrity fell below 20% 2409 | -8/Materials | Destroyed by H-61 Shepherd with Heavy Assault Cannon Last Messages --------------- Acquired Imp. Ion Engine. Lgt. Armor Plating blasted off. Knocked back. Acquired Lgt. Armor Plating. Acquired 25 matter. Lgt. Armor Plating destroyed. Acquired Unknown Device. Identified Imp. Heat Sink. Acquired Hardlight Generator. The Hardlight Generator is an example of a part that consumes a large amount of energy each turn, consider turning it off when not vital. Wheel destroyed. Slammed into G-47 Trooper. Destabilizing: System interference. Hardlight Generator temporarily disabled. Salvage Targeting Computer temporarily disabled. Imp. Ion Engine destroyed. Slammed into G-47 Trooper. Acquired 4 matter. Map ----- +----------------------------------------------------+ | ??????????????????????????????????????? | | ??????????????????????????????????????? | | ??????????????????????????????????????? | | ??????????????????????????????????????? | | ??????????????????????????????????????? | | ?????????????????????????##???????????? | | ??????????????????????###"#???????????? | | ??????????????????????# #???????????? | | ??????????????????????# #???????????? | | ??????????????????????# #???????????? | | ??????????????????????# #???????????? | | ??????????????????????# #???????????? | | ??????????????????????# #???????????? | | ??????????????????????# #???????????? | | ??????????????????????# ###########?? | | ??????????????????????# # #?? | | ??????????????????????#% # """ """ #?? | | ??????????????????????# # """ """ #?? | | ??????????????????????# # """ """ #?? | | ??????????????????????#% + #?? | | ??????????????????????# H# "T" #?? | | ??????????????????????###%# """ ! #?? | | ????????????????????????#%g #?? | | ????????????????????????#%###########?? | | ????????????????????????# ;#??????????? | | ????????????????????????#@##??????????? | | ????????????????????????#%#???????????? | | ????????????????????????#[#???????????? | | ????????????????????????#=#???????????? | | ????????????????????????#%#???????????? | | ????????????????????????# #???????????? | | ????????????????????????# #???????????? | | ????????????????????????# #???????????? | | ????????????????????????# #???????????? | | ????????????????????????? ????????????? | | ????????????????????????? ????????????? | | ????????????????????????? ????????????? | | ????????????????????????? ????????????? | | ????????????????????????? ????????????? | | ?????????????????????????#????????????? | | ??????????????????????????????????????? | | ??????????????????????????????????????? | | ??????????????????????????????????????? | | ??????????????????????????????????????? | | ??????????????????????????????????????? | | ??????????????????????????????????????? | | ??????????????????????????????????????? | | ??????????????????????????????????????? | | ??????????????????????????????????????? | | ??????????????????????????????????????? | +----------------------------------------------------+ Best States ------------- Heat Dissipation 45 Energy Generation 19 Energy Capacity 310 Matter Stores 450 Matter Capacity 450 Sight Range 16 Robot Scan Range 20 Terrain Scan Range 16 Terrain Scan Density 10 Armor Coverage 150 Utility Shielding 33 Evasion (%) 62 Recoil Reduction 1 Salvage Targeting 1 Item Schematics ----------------- None Robot Schematics ------------------ None Fabricated ------------ Nothing Alien Tech Used ----------------- None Achievements -------------- I Survived The Infestation Risk Taker Challenges ------------ None Game ------ Seed HypercooledGammaStabilizer Manual? 0 Play Time 00:27:18 Cumulative 2.5 hours Start 2024.08.22 @ 21:45:44 End 2024.08.22 @ 22:26:10 Sessions 1 Manual Loads 0 Difficulty Rogue Special Mode None Game No. 9 Rogue 8 Adventurer 1 Explorer 0 Win Type - Total 0 Types 0/0/0/0/0/0/0/0/0 Lore% 1 Gallery% 6 Achievement% 7 Wizard Run 0 Options --------- Layout 2 ASCII 0 Keyboard 1 Movement Arrows Keybinds 0 Fullscreen 1 Font 24/Smallcaps Map View 50x44 Zoom Use 0% Tactical HUD 0 Map Filters NONE Filters NONE Steam 1 RUN: 8e9d6f01-f067-4be8-b3d2-8346c204f461